bitfinex/quotes_ETHUSD_20260310
["timestamp","ask_amount","ask_price","bid_price","bid_amount"]
[1773145799422,2.15052971,2054.1,2053.7,1.21729352]
[1773145799805,2.15052971,2054.1,2053.7,1.68327128]
[1773145800202,0.55352971,2054.1,2053.7,1.68327128]
[1773145800387,0.001,2053.9,2053.8,0.46597776]
[1773145801087,2.14952971,2054.5,2054.1,0.4651224]
[1773145801408,4.31525226,2054.5,2054.0,1.68225969]
[1773145802519,0.55352971,2054.4,2053.7,1.21731508]
[1773145802730,0.55352971,2054.4,2053.6,1.68272365]
[1773145802731,1.5024063,2054.1,2053.6,1.68272365]
[1773145802940,0.55352971,2054.1,2053.7,0.0486926]
[1773145803221,1.7706116,2054.1,2053.6,1.73055301]
[1773145803880,1.80706891,2054.1,2053.6,0.46453256]
[1773145804086,1.80706891,2054.1,2053.6,1.68189985]
[1773145804296,0.58998702,2054.1,2053.6,1.68189985]
[1773145804585,0.55352971,2054.1,2053.6,1.73059482]
[1773145804788,1.595,2054.1,2053.7,0.46178157]
[1773145804996,2.13454432,2054.1,2053.6,1.21846347]
[1773145805196,0.57600163,2054.0,2053.6,0.0011]
[1773145805720,0.53954432,2053.8,2053.4,0.0011]
[1773145805920,0.53954432,2053.8,2053.4,1.21858643]
[1773145806508,0.53954432,2053.8,2053.4,0.0011]
[1773145807620,0.53954432,2053.8,2053.4,0.04979971]
[1773145807922,0.53954432,2053.8,2053.4,0.50839313]
[1773145808125,1.595,2053.7,2053.4,0.50839313]
[1773145808416,0.94887659,2054.3,2053.4,0.50839313]
[1773145808417,0.53954432,2054.4,2053.5,0.45859342]
[1773145808619,0.53954432,2054.4,2053.7,0.45859342]
[1773145808787,1.595,2054.3,2053.9,0.45782066]
[1773145808989,1.25327726,2054.6,2053.9,0.45782066]
[1773145808990,0.53954432,2054.6,2053.9,0.45782066]
[1773145809189,1.595,2054.5,2054.0,1.67495795]
[1773145809484,0.53954432,2054.4,2053.9,1.21715693]
[1773145810393,0.57600163,2054.4,2053.9,1.21715693]
[1773145813430,0.53954432,2054.4,2054.0,0.04868549]
[1773145813615,1.63145731,2054.5,2054.0,0.04868549]
[1773145813819,1.595,2054.5,2054.1,1.21707803]
[1773145814126,3.3513969,2054.5,2054.0,1.71877917]
[1773145814430,2.17100163,2054.5,2054.0,1.71877917]
[1773145815501,3.38784325,2054.5,2054.0,1.71877917]
[1773145815911,0.53954432,2054.4,2054.0,1.21708864]
[1773145816230,0.53954432,2054.4,2053.8,1.66541792]
[1773145817804,0.53954432,2054.3,2053.8,1.66541792]
[1773145818742,0.53954432,2054.3,2053.9,0.04868786]
[1773145820126,3.35143872,2054.5,2054.0,1.6591926]
[1773145820328,0.53954432,2054.4,2054.1,0.04868312]
[1773145821329,0.53954432,2054.4,2053.9,1.21714955]
[1773145821647,0.53954432,2054.2,2054.0,0.04868549]
[1773145822420,0.53954432,2054.2,2053.8,1.65630785]
[1773145822753,0.53954432,2054.2,2053.8,1.21722077]
[1773145824014,0.53954432,2054.2,2053.8,1.21832077]
[1773145824215,0.54054432,2054.1,2053.8,1.21832077]
[1773145825648,0.54054432,2054.1,2053.8,0.0011]
[1773145825948,0.54054432,2054.1,2053.6,0.0011]
[1773145825949,0.53954432,2053.9,2053.6,0.0011]
[1773145826127,3.08723239,2053.8,2053.5,0.0011]
[1773145826335,2.13854432,2053.8,2053.5,0.0011]
[1773145826534,1.599,2053.8,2053.5,1.65188733]
[1773145826732,1.599,2053.8,2053.6,0.03659255]
[1773145826949,1.599,2053.8,2053.5,1.21852586]
[1773145827451,1.599,2053.8,2053.6,0.03659255]
[1773145827660,0.53954432,2053.8,2053.5,0.03769255]
[1773145827837,1.599,2053.7,2053.5,0.03769255]
[1773145831480,3.35586362,2053.7,2053.5,0.0011]
[1773145834372,2.13854432,2053.7,2053.5,0.0011]
[1773145835039,3.35588184,2053.7,2053.4,0.03769819]
[1773145835379,1.50343505,2053.6,2053.3,0.0011]
[1773145836055,2.72083291,2053.6,2053.3,0.0011]
[1773145836646,2.72083291,2053.6,2053.5,0.0011]
[1773145836875,2.72083291,2053.6,2053.3,0.0011]
[1773145837374,2.16608593,2053.6,2053.3,0.0011]
[1773145837570,0.55474698,2053.5,2053.3,0.0011]
[1773145838382,0.55474698,2053.4,2053.3,0.0011]
[1773145839159,0.55474698,2053.4,2053.2,0.0011]
[1773145839358,0.55474698,2053.3,2052.9,0.4163613]
[1773145839657,2.16074698,2053.2,2052.9,1.21886436]
[1773145840255,4.32705678,2053.2,2052.9,0.0011]
[1773145840882,0.55474698,2053.1,2052.9,0.0011]
[1773145841279,0.55474698,2053.1,2052.2,4.87277468]
[1773145841280,0.55474698,2053.1,2052.3,0.41290655]
[1773145841481,0.55474698,2052.9,2052.3,0.41290655]
[1773145841663,1.608,2052.8,2052.3,0.41290655]
[1773145841862,0.55474698,2052.7,2052.3,0.41290655]
[1773145842172,1.609,2052.7,2052.4,0.41285043]
[1773145842375,1.77242707,2053.1,2052.4,0.41285043]
[1773145842690,2.16374698,2053.0,2052.4,0.41285043]
[1773145842988,0.55474698,2052.9,2052.4,0.41285043]
[1773145843292,0.55474698,2052.7,2052.3,1.6297968]
[1773145843891,2.16474698,2052.8,2052.4,0.41057308]
[1773145844185,0.55474698,2052.8,2052.3,0.41057308]
[1773145844352,1.611,2052.7,2052.3,0.41057308]
[1773145845171,0.55474698,2052.6,2052.1,1.62769446]
[1773145845549,0.55474698,2052.6,2052.2,0.40945512]
[1773145845748,0.55474698,2052.6,2051.9,0.003]
[1773145845749,0.55474698,2052.2,2051.9,0.003]
[1773145845948,0.94868807,2052.6,2051.9,1.22138125]
[1773145846172,1.609,2052.1,2051.9,1.22138125]
[1773145846375,1.39005212,2052.1,2051.9,1.62863934]
[1773145846581,1.609,2052.2,2051.9,1.62863934]
[1773145847080,2.1265494,2052.2,2051.9,0.003]
[1773145847284,0.5175494,2052.1,2051.9,0.003]
[1773145847686,1.61,2052.2,2051.9,0.003]
[1773145847887,1.61,2052.2,2051.0,4.87566769]
[1773145848057,0.54691632,2051.1,2049.0,1.46407279]
[1773145848254,16.12769719,2051.4,2049.8,1.21963118]
[1773145848255,0.66755859,2051.0,2049.8,1.21963118]
[1773145848485,16.19323319,2052.0,2049.8,1.21963118]
[1773145848486,4.2498554,2051.6,2050.5,0.94868807]
[1773145848670,0.54691632,2051.5,2050.4,2.46123699]
[1773145849273,0.54691632,2051.5,2050.5,0.447136]
[1773145849758,0.54691632,2051.4,2050.5,1.39582407]
[1773145850057,0.54691632,2051.4,2050.5,0.447136]
[1773145850058,0.54691632,2051.3,2050.5,0.447136]
[1773145850258,0.54691632,2051.2,2050.6,1.21915536]
[1773145850480,0.54691632,2051.2,2050.5,0.447136]
[1773145850682,0.94868807,2050.9,2049.8,4.87843249]
[1773145850886,0.54691632,2050.4,2049.5,1.21975019]
[1773145851072,2.16745111,2051.3,2050.1,0.94868807]
[1773145851073,0.54691632,2050.8,2050.1,0.94868807]
[1773145851288,0.54691632,2050.8,2050.2,0.447136]
[1773145851485,0.94868807,2051.2,2050.3,0.94868807]
[1773145851486,0.54691632,2051.2,2050.3,0.94868807]
[1773145851794,0.54691632,2051.2,2049.9,0.447136]
[1773145851997,2.82676304,2051.3,2049.9,0.447136]
[1773145851998,0.54691632,2051.0,2049.9,0.447136]
[1773145852161,0.54691632,2051.0,2049.5,1.31119093]
[1773145852162,0.54691632,2051.0,2050.0,0.447136]
[1773145852361,0.54691632,2050.8,2049.8,1.21963118]
[1773145852561,0.54691632,2050.8,2049.8,1.66676718]
[1773145853992,0.54691632,2050.8,2049.8,4.13148718]
[1773145854205,0.54391632,2050.8,2049.8,4.13148718]
[1773145854564,0.54391632,2050.8,2049.9,0.08854276]
[1773145855789,0.54391632,2050.8,2050.1,0.08561707]
[1773145856582,0.54391632,2050.8,2050.2,4.04570646]
[1773145857517,0.54391632,2050.8,2050.2,1.66652922]
[1773145858084,0.54541632,2051.0,2050.2,1.7435479]
[1773145858782,0.54541632,2051.0,2050.2,1.66652922]
[1773145858783,0.54541632,2050.9,2050.2,1.66652922]
[1773145860014,0.54541632,2050.9,2050.2,1.73782673]
[1773145860913,1.76421824,2051.2,2050.3,0.06845573]
[1773145861113,0.54541632,2051.2,2050.5,2.44763297]
[1773145861682,0.001,2051.3,2050.8,2.37917724]
[1773145861917,0.001,2051.3,2050.6,0.06845573]
[1773145862483,0.001,2051.3,2050.8,2.44480362]
[1773145862883,0.001,2051.3,2050.9,1.66611303]
[1773145865530,0.57167288,2051.8,2051.1,2.37917724]
[1773145865703,0.57167288,2051.8,2051.1,0.0556084]
[1773145865904,0.57167288,2051.8,2051.2,0.447136]
[1773145867028,0.57167288,2051.8,2051.4,1.21867992]
[1773145867207,0.57167288,2051.7,2051.0,0.447136]
[1773145867416,0.57167288,2051.7,2051.0,1.21886975]
[1773145867632,0.57167288,2051.5,2051.1,0.447136]
[1773145868328,0.57167288,2051.5,2050.9,1.21892948]
[1773145868526,0.57167288,2051.5,2051.1,0.447136]
[1773145868909,1.79010044,2051.9,2051.2,1.21879875]
[1773145869107,0.57167288,2051.8,2051.2,1.66593475]
[1773145869733,0.57167288,2051.6,2051.2,0.447136]
[1773145869928,0.57167288,2051.6,2050.9,4.8758269]
[1773145870236,0.57167288,2051.6,2051.1,0.447136]
[1773145871041,0.57167288,2051.5,2051.1,1.66595118]
[1773145872427,0.6326039,2051.5,2051.1,0.447136]
[1773145872914,0.57167288,2051.5,2051.1,0.447136]
[1773145873415,0.57267288,2051.3,2051.1,0.447136]
[1773145874130,0.57267288,2051.3,2051.1,1.66598596]
[1773145874333,4.8738127,2051.8,2051.1,1.66598596]
[1773145874334,0.57167288,2051.7,2051.1,1.66598596]
[1773145874507,1.79018295,2051.7,2051.1,1.66598596]
[1773145874708,0.57167288,2051.6,2051.1,1.66598596]
[1773145874919,0.57167288,2052.5,2051.2,0.12637993]
[1773145875120,0.57167288,2052.3,2051.3,0.447136]
[1773145875439,0.57167288,2052.0,2051.4,1.21867992]
[1773145875638,0.57167288,2052.0,2051.4,1.66581592]
[1773145875808,0.57167288,2052.0,2051.4,1.78926147]
[1773145876008,0.57167288,2052.2,2051.5,0.12344555]
[1773145876205,0.57167288,2052.4,2051.5,0.12344555]
[1773145876430,0.57167288,2052.4,2051.7,0.12344555]
[1773145877237,0.57167288,2052.4,2051.8,1.21844234]
[1773145877415,0.57167288,2052.7,2051.9,0.29783597]
[1773145877609,0.57167288,2052.7,2052.0,0.447136]
[1773145878433,2.19056531,2052.8,2052.1,0.29445579]
[1773145878712,1.78952824,2052.8,2052.1,0.29445579]
[1773145879512,1.78952824,2052.8,2052.2,1.21820485]
[1773145879923,0.57167288,2052.7,2052.2,1.21820485]
[1773145880246,0.57167288,2052.7,2052.1,1.21822788]
[1773145880446,0.57167288,2052.7,2052.2,0.447136]
[1773145880614,0.57167288,2052.5,2052.1,0.447136]
[1773145881360,0.63256828,2052.7,2052.1,0.73155149]
[1773145881637,0.44050433,2053.4,2052.1,0.447136]
[1773145881638,0.57167288,2052.5,2052.1,0.447136]
[1773145882228,0.57167288,2052.5,2051.9,1.21833587]
[1773145882433,0.57167288,2052.5,2052.0,0.447136]
[1773145883827,0.57167288,2052.5,2052.1,1.21826421]
[1773145884212,1.78940303,2053.0,2052.1,1.21826421]
[1773145884414,0.57167288,2052.8,2052.2,0.447136]
[1773145885931,0.57167288,2052.8,2052.3,1.21814549]
[1773145886114,0.001,2052.6,2052.3,1.21814549]
[1773145886715,0.001,2052.6,2052.4,0.447136]
[1773145886716,0.57267288,2052.6,2052.4,0.447136]
[1773145886912,0.57267288,2052.6,2052.0,1.21828207]
[1773145887111,0.57267288,2052.6,2052.1,0.19376024]
[1773145887940,0.57167288,2052.5,2052.1,1.41198627]
[1773145888130,0.001,2052.6,2052.1,1.41198627]
[1773145888330,0.57167288,2052.5,2052.1,1.41198627]
[1773145888530,0.001,2052.6,2052.1,1.41198627]
[1773145888918,0.001,2052.6,2052.1,1.93109167]
[1773145890240,0.001,2052.6,2052.2,0.51589967]
[1773145891057,0.57167288,2053.1,2052.4,0.45363556]
[1773145891254,0.57167288,2053.1,2052.2,0.45363556]
[1773145891423,0.57167288,2053.1,2052.2,0.6473958]
[1773145892218,0.57167288,2053.0,2052.3,1.66860589]
[1773145892546,0.57167288,2053.0,2052.4,0.4504604]
[1773145893757,0.57167288,2053.0,2052.3,1.66164759]
[1773145893977,0.57167288,2053.0,2052.5,0.19376024]
[1773145894177,0.57167288,2053.0,2052.6,1.21796745]
[1773145894846,0.57167288,2053.0,2052.7,0.19376024]
[1773145895050,0.59692319,2053.2,2052.7,0.19376024]
[1773145896248,0.59692319,2053.2,2052.8,1.21784879]
[1773145896445,1.57,2053.3,2052.8,1.21784879]
[1773145896644,2.16692319,2053.3,2052.9,0.19376024]
[1773145896844,0.59692319,2053.2,2052.8,1.21784879]
[1773145897442,0.59692319,2053.2,2052.9,0.09654476]
[1773145897776,0.59692319,2053.0,2052.7,0.09574476]
[1773145897960,0.59692319,2053.0,2052.6,0.09574476]
[1773145898291,1.81483131,2052.7,2052.0,0.56083136]
[1773145898483,0.59692319,2052.6,2052.0,1.77910922]
[1773145899644,0.59692319,2052.2,2051.9,0.0011]
[1773145899848,1.571,2052.3,2051.9,1.2194768]
[1773145900352,3.38607241,2052.3,2052.2,0.0011]
[1773145900668,0.59692319,2052.2,2051.9,0.0011]
[1773145902555,1.81515844,2052.2,2051.9,0.0011]
[1773145903277,1.572,2052.3,2051.9,0.0011]
[1773145904043,2.16492319,2052.4,2051.9,0.0011]
[1773145904249,1.568,2052.4,2051.9,0.0011]
[1773145904776,5.46860158,2052.7,2051.9,1.78031432]
[1773145904777,0.59692319,2052.7,2051.9,1.78031432]
[1773145905105,3.3838338,2052.7,2051.9,1.78031432]
[1773145905247,0.59692319,2052.6,2051.9,1.78031432]
[1773145905647,0.59692319,2052.6,2051.9,1.21948296]
[1773145906178,0.65782156,2052.6,2051.9,1.21948296]
[1773145907475,1.21802679,2052.5,2051.9,0.0011]
[1773145907674,1.21802679,2052.5,2051.9,0.63346738]
[1773145907675,1.57,2052.5,2051.9,0.63346738]
[1773145908582,2.16216035,2052.5,2051.9,0.63346738]
[1773145909180,0.59216035,2052.4,2051.9,0.0011]
[1773145909583,1.81030584,2052.3,2051.9,0.0011]
[1773145910282,0.59216035,2052.5,2051.9,0.0011]
[1773145910581,0.59216035,2052.3,2051.9,0.0011]
[1773145911582,1.81042456,2052.1,2051.6,0.0011]
[1773145912663,1.81042456,2052.1,2051.4,1.85212595]
[1773145913087,1.81042456,2052.1,2051.9,0.0011]
[1773145913473,0.06091024,2052.2,2051.9,0.0011]
[1773145913676,1.571,2052.2,2051.9,0.0011]
[1773145915464,2.22506762,2052.3,2051.9,0.0011]
[1773145916487,3.443216,2052.3,2051.9,0.0011]
[1773145918285,3.442416,2052.3,2051.9,0.0011]
[1773145919370,0.59216035,2052.2,2051.9,0.0011]
[1773145919695,0.06091321,2052.1,2051.6,1.21854139]
[1773145919895,0.65307356,2052.1,2051.5,1.8509879]
[1773145920392,0.59216035,2051.9,2051.4,0.0011]
[1773145921379,1.572,2051.8,2051.4,0.0011]
[1773145921984,0.59216035,2051.9,2051.4,1.85211075]
[1773145922185,1.573,2051.8,2051.4,1.85211075]
[1773145922697,5.46545469,2052.1,2051.5,0.63236738]
[1773145922698,0.59216035,2052.1,2051.5,0.63236738]
[1773145922868,1.63391617,2052.0,2051.5,0.63236738]
[1773145923070,0.06091617,2052.0,2051.5,0.63236738]
[1773145923296,4.87289598,2052.3,2051.7,0.63236738]
[1773145923297,3.38350727,2052.3,2051.7,0.63236738]
[1773145923596,0.06091024,2052.2,2051.8,0.68110506]
[1773145923796,0.59236035,2052.3,2051.8,0.68110506]
[1773145924097,0.0002,2052.3,2051.8,0.68110506]
[1773145924704,0.0002,2052.3,2052.0,0.59211906]
[1773145925977,0.0002,2052.3,2051.9,1.21838296]
[1773145926701,0.0002,2052.3,2052.0,0.59211906]
[1773145928185,0.0002,2052.3,2052.0,0.62616266]
[1773145929472,0.0002,2052.3,2052.1,1.21826421]
[1773145929674,0.0002,2052.3,2052.0,1.84444507]
[1773145930080,0.0002,2052.3,2052.0,1.81040147]
[1773145930686,0.0002,2052.3,2052.1,0.59211906]
[1773145931714,0.0002,2052.3,2052.1,1.81037402]
[1773145932615,0.0002,2052.3,2052.1,0.59211906]
[1773145933309,0.0002,2052.3,2052.1,1.81037398]
[1773145933515,0.0002,2052.3,2052.1,0.59211906]
[1773145933711,0.0002,2052.3,2051.9,0.59211906]
[1773145934911,0.56929882,2052.3,2051.9,0.59211906]
[1773145935147,0.63000906,2052.2,2051.7,1.81169176]
[1773145935290,0.63000906,2052.2,2051.7,0.0011]
[1773145935487,0.56909882,2052.0,2051.7,0.0011]
[1773145935814,0.56909882,2052.0,2051.5,0.0011]
[1773145937413,0.56909882,2052.0,2051.9,0.0011]
[1773145937591,0.56909882,2051.8,2051.5,0.0011]
[1773145938117,1.573,2051.7,2051.6,0.0011]
[1773145938491,1.78742671,2052.0,2051.6,0.0011]
[1773145938713,1.573,2051.9,2051.6,0.0011]
[1773145939701,2.79142298,2051.9,2051.6,0.0011]
[1773145940216,1.573,2051.9,2051.6,0.0011]
[1773145940422,2.79138953,2051.9,2051.6,0.0011]
[1773145940594,1.573,2051.9,2051.6,0.0011]
[1773145940795,2.79139487,2051.9,2051.6,0.0011]
[1773145942797,2.79139875,2051.9,2051.6,0.0011]
[1773145943000,2.85231789,2051.9,2051.6,0.0011]
[1773145943516,1.63391914,2051.9,2051.6,0.0011]
[1773145943817,3.36048446,2051.9,2051.6,0.0011]
[1773145944018,1.573,2051.9,2051.6,0.0011]
[1773145944323,2.79139031,2051.9,2051.6,0.59321906]
[1773145944818,2.79139031,2051.9,2051.6,0.0011]
[1773145945023,0.56909882,2051.8,2051.2,0.0011]
[1773145945724,0.63002093,2051.8,2051.2,0.0011]
[1773145946134,1.78760055,2051.7,2051.2,0.0011]
[1773145947994,0.56909882,2051.7,2051.2,0.59321906]
[1773145948325,2.79658099,2051.6,2051.2,0.0011]
[1773145948626,3.42660786,2051.6,2051.2,0.0011]
[1773145949311,2.85750904,2051.6,2051.2,1.21989791]
[1773145949506,1.63892805,2051.6,2051.3,0.59211906]
[1773145949712,1.63992805,2051.6,2051.3,0.59211906]
[1773145949914,2.85849276,2051.6,2051.3,0.53211906]
[1773145950104,2.85849276,2051.6,2051.4,0.0011]
[1773145950505,1.63992805,2051.6,2051.4,0.0011]
[1773145950722,1.34756378,2051.6,2051.4,0.64196625]
[1773145952433,1.34756378,2051.6,2051.4,1.86060376]
[1773145952811,0.001,2051.7,2051.5,0.59211906]
[1773145954699,0.51968407,2051.7,2051.2,0.0011]
[1773145954904,0.57961212,2051.6,2051.2,0.0011]
[1773145955106,0.51968407,2051.7,2051.2,0.0011]
[1773145955306,2.10068407,2051.7,2051.2,0.0011]
[1773145955507,0.57961212,2051.6,2051.2,0.0011]
[1773145956734,1.21862052,2051.5,2051.2,0.0011]
[1773145958215,0.001,2051.7,2051.2,0.54941601]
[1773145958926,0.001,2051.7,2051.4,0.54831601]
[1773145959129,1.581,2052.0,2051.4,0.54831601]
[1773145960333,2.79935082,2052.3,2051.4,0.54831601]
[1773145960534,0.06091024,2052.2,2051.4,0.54831601]
[1773145961036,0.06091024,2052.2,2051.6,0.54831601]
[1773145961224,1.5812,2052.3,2051.6,0.54831601]
[1773145963041,1.5812,2052.3,2051.8,0.54831601]
[1773145963414,0.001,2051.9,2051.8,0.54831601]
[1773145965731,0.001,2051.9,2051.8,1.21844234]
[1773145966111,0.001,2051.9,2051.7,0.54831601]
[1773145966317,0.51888407,2052.3,2051.7,0.54831601]
[1773145966512,0.0002,2052.3,2051.7,0.54831601]
[1773145967838,0.0002,2052.3,2051.9,0.52473115]
[1773145970221,0.0002,2052.3,2052.0,1.21832358]
[1773145971931,0.0002,2052.3,2051.7,0.52473115]
[1773145974049,0.0002,2052.3,2051.9,0.52473115]
[1773145975454,0.0002,2052.3,2051.9,0.52583115]
[1773145976062,0.0002,2052.3,2052.0,1.74305473]
[1773145978556,0.0002,2052.3,2051.9,0.0011]
[1773145979926,0.51947035,2052.2,2051.9,0.0011]
[1773145980456,0.0002,2052.3,2052.0,0.52473115]
[1773145980657,0.0002,2052.3,2052.1,1.21826421]
[1773145981063,0.0002,2052.3,2052.2,0.52473115]
[1773145981761,0.0002,2052.3,2052.1,1.21826421]
[1773145986264,0.0002,2052.3,2052.1,1.73258986]
[1773145988540,0.0002,2052.3,2052.2,0.51432565]
[1773145989668,0.0002,2052.3,2052.2,1.7325305]
[1773145989858,0.0002,2052.3,2052.2,1.21820485]
[1773145990455,0.0002,2052.3,2052.0,0.0011]
[1773145990644,0.0002,2052.3,2051.9,0.0011]
[1773145992076,0.49279859,2052.3,2051.9,0.0011]
[1773145993072,0.49259859,2052.2,2051.6,0.0011]
[1773145994171,0.49259859,2052.0,2051.6,0.0011]
[1773145996672,1.71080344,2052.2,2051.6,0.51542565]
[1773145997056,1.21820485,2052.2,2051.6,0.51542565]
[1773145997275,0.49259859,2052.1,2051.6,0.51542565]
[1773145997873,3.26094418,2052.3,2051.6,0.51542565]
[1773145998093,0.0002,2052.3,2051.6,0.51542565]
[1773145998262,0.0002,2052.3,2051.7,0.51432565]
[1773145998458,0.0002,2052.3,2051.9,0.51432565]
[1773145999987,0.0002,2052.3,2052.1,0.51542565]
[1773146000212,1.547,2052.6,2052.1,0.51542565]
[1773146000674,1.547,2052.6,2052.2,1.7325305]
[1773146001171,1.547,2052.6,2052.3,0.51432565]
[1773146001562,0.001,2052.8,2052.3,0.51432565]
[1773146002990,0.001,2052.8,2052.5,0.51432565]
[1773146004179,0.48384446,2053.4,2052.6,0.49028996]
[1773146004376,0.48384446,2053.3,2052.6,0.49028996]
[1773146004780,0.48384446,2053.3,2052.7,1.21790812]
[1773146004973,0.48384446,2053.3,2052.8,0.49028996]
[1773146006898,0.48384446,2053.3,2052.9,1.21778946]
[1773146007079,0.48384446,2053.2,2052.8,1.21781388]
[1773146007774,1.70134051,2053.4,2052.8,1.70810384]
[1773146008193,1.76221515,2053.4,2052.8,1.70810384]
[1773146008595,0.48384446,2053.3,2052.8,0.49028996]
[1773146008896,0.06087464,2053.4,2052.9,0.49028996]
[1773146009095,0.48484446,2053.5,2052.9,0.49028996]
[1773146009295,0.001,2053.5,2052.9,0.49028996]
[1773146010170,0.48484446,2053.5,2052.9,0.49028996]
[1773146010373,0.48384446,2053.4,2052.9,0.49028996]
[1773146011182,0.48384446,2053.4,2053.0,1.21773015]
[1773146011678,0.54472207,2053.3,2052.6,0.49028996]
[1773146012807,0.54572207,2053.3,2052.6,0.49028996]
[1773146013101,1.21761153,2053.2,2052.7,1.21790812]
[1773146013304,1.70145599,2053.2,2052.7,1.21790812]
[1773146015607,0.46997251,2053.1,2052.7,1.21790812]
[1773146016119,0.46997251,2053.1,2052.4,1.68319922]
[1773146016328,0.46997251,2052.9,2052.2,1.68330969]
[1773146017104,0.46997251,2052.9,2052.3,0.46513802]
[1773146018875,1.21784879,2052.8,2052.4,1.21808614]
[1773146019293,1.21784879,2052.8,2052.3,1.21809859]
[1773146019294,0.46997251,2052.7,2052.3,1.21809859]
[1773146019484,0.46997251,2052.7,2052.1,0.46623802]
[1773146019485,0.46997251,2052.7,2052.1,1.68445571]
[1773146019693,1.21784879,2052.8,2052.1,1.21931769]
[1773146019694,0.46997251,2052.5,2052.1,1.21931769]
[1773146020403,0.46997251,2052.5,2052.1,1.21935481]
[1773146021102,1.68800667,2052.5,2052.1,0.0011]
[1773146021405,0.46997251,2052.5,2052.1,0.0011]
[1773146021909,0.46997251,2052.7,2052.1,0.46623802]
[1773146023013,0.46997251,2053.1,2052.3,0.46513802]
[1773146023212,0.0608865,2053.0,2052.3,0.46513802]
[1773146023417,0.46997251,2053.1,2052.3,0.46513802]
[1773146023577,3.28544952,2053.3,2052.3,0.46513802]
[1773146024119,0.46997251,2053.2,2052.3,0.46513802]
[1773146024911,0.46997251,2053.2,2052.4,1.21808614]
[1773146025116,0.001,2053.3,2052.4,1.21808614]
[1773146025285,0.001,2053.0,2052.4,1.21808614]
[1773146025486,0.001,2053.3,2052.5,0.46513802]
[1773146025898,0.47097251,2053.3,2052.5,0.46513802]
[1773146026089,1.74941399,2053.3,2052.5,0.46513802]
[1773146026501,0.53185012,2053.3,2052.5,0.46513802]
[1773146026680,0.06088057,2053.2,2052.5,0.46513802]
[1773146026881,0.5195892,2053.2,2052.6,1.21796745]
[1773146027076,0.001,2053.3,2052.7,0.48893658]
[1773146027482,0.45870863,2053.2,2052.6,1.21796745]
[1773146029123,0.45870863,2053.1,2052.6,1.21796745]
[1773146029316,0.51959217,2053.1,2052.6,1.21796745]
[1773146029615,0.45870863,2053.1,2052.6,1.21796745]
[1773146030317,0.45870863,2053.1,2052.3,1.21921875]
[1773146030519,0.45870863,2052.9,2052.3,0.0011]
[1773146030707,0.45870863,2052.9,2052.3,1.21923812]
[1773146030910,0.45870863,2052.9,2052.3,0.0011]
[1773146031115,0.45870863,2052.7,2052.3,1.21922308]
[1773146031434,0.45870863,2052.7,2052.1,1.21935923]
[1773146033221,0.45870863,2053.0,2052.2,0.48893658]
[1773146033597,0.06088947,2052.9,2052.2,0.48893658]
[1773146033928,0.5195981,2052.9,2052.2,0.48893658]
[1773146035006,1.98670863,2053.1,2052.2,0.48893658]
[1773146035202,0.45870863,2053.1,2052.4,0.48893658]
[1773146035525,0.45870863,2053.2,2052.4,0.48893658]
[1773146035715,0.43839163,2053.2,2052.4,0.48893658]
[1773146037027,0.001,2053.3,2052.4,0.48893658]
[1773146037322,0.45870863,2053.2,2052.6,0.48893658]
[1773146037505,0.001,2053.0,2052.6,0.48893658]
[1773146037826,0.001,2053.3,2052.7,0.48893658]
[1773146039109,0.001,2053.3,2052.8,1.21784879]
[1773146039313,0.45870863,2053.2,2052.5,0.48893658]
[1773146039630,0.001,2053.3,2052.5,0.48893658]
[1773146041438,0.001,2053.3,2052.7,0.48893658]
[1773146042339,0.001,2053.3,2052.8,0.48893658]
[1773146043506,0.001,2053.3,2053.0,0.48893658]
[1773146043926,0.001,2053.5,2053.0,0.48091589]
[1773146045622,0.001,2053.5,2052.7,4.87121853]
[1773146045623,0.47463857,2053.5,2052.7,1.69882401]
[1773146045827,0.47363857,2053.3,2052.7,0.48091589]
[1773146047807,1.6912501,2053.2,2052.8,1.21784879]
[1773146048340,0.47363857,2053.2,2052.8,1.21784879]
[1773146048525,0.47363857,2053.2,2052.7,1.69880069]
[1773146048730,0.47363857,2053.2,2052.7,1.2178848]
[1773146049041,0.47363857,2053.2,2053.0,0.0011]
[1773146049410,0.06187761,2053.3,2053.0,0.0011]
[1773146049612,1.27943081,2053.3,2053.0,0.0011]
[1773146050541,0.001,2053.3,2053.0,0.0011]
[1773146052340,0.47463857,2053.3,2052.8,0.0011]
[1773146054147,1.21761153,2053.2,2052.8,0.0011]
[1773146054319,1.6912501,2053.2,2052.8,0.0011]
[1773146055346,0.47363857,2053.1,2052.8,0.0011]
[1773146055716,0.47363857,2053.0,2052.8,0.0011]
[1773146056846,1.69137501,2053.0,2052.8,0.0011]
[1773146057222,0.47363857,2053.0,2052.8,0.0011]
[1773146057420,1.69138199,2053.0,2052.8,0.0011]
[1773146058336,0.47363857,2052.9,2052.8,0.0011]
[1773146059954,1.21774342,2053.0,2052.8,0.0011]
[1773146060348,1.69220743,2053.3,2052.8,0.0011]
[1773146060650,0.06088057,2053.2,2052.8,0.48201589]
[1773146060848,0.53451914,2053.2,2052.8,0.48201589]
[1773146061456,0.53451914,2053.2,2052.8,0.0011]
[1773146061951,1.75216018,2053.2,2052.8,0.0011]
[1773146062133,0.53451914,2053.2,2052.8,0.0011]
[1773146062937,0.53451914,2053.2,2053.0,0.0011]
[1773146063249,1.752131,2053.2,2053.0,0.0011]
[1773146064050,0.06088057,2053.2,2053.0,0.0011]
[1773146064233,0.47363857,2053.2,2053.0,0.0011]
[1773146065747,1.69125786,2053.2,2053.0,0.0011]
[1773146066551,0.47363857,2053.1,2053.0,0.0011]
[1773146067462,0.47363857,2053.1,2052.8,0.0011]
[1773146067763,0.47363857,2053.0,2052.5,0.48201589]
[1773146067946,0.47363857,2053.0,2052.5,1.21912339]
[1773146067947,0.53452507,2053.0,2052.5,1.21912339]
[1773146068134,0.53452507,2053.0,2052.5,0.48201589]
[1773146068334,0.47363857,2052.9,2052.5,0.48201589]
[1773146068531,0.47363857,2052.9,2052.5,0.0011]
[1773146069345,0.47363857,2052.9,2052.5,0.48201589]
[1773146070305,0.47463857,2053.3,2052.7,0.48091589]
[1773146070456,0.06088057,2053.2,2052.7,0.48091589]
[1773146071234,0.06088057,2053.2,2052.5,1.21912018]
[1773146071235,0.47363857,2053.1,2052.5,1.21912018]
[1773146071449,0.47363857,2053.2,2052.6,0.48091589]
[1773146071649,1.521,2053.1,2052.6,0.48091589]
[1773146072249,1.58188354,2053.1,2052.7,1.21790812]
[1773146072482,0.06187761,2053.3,2052.8,0.48091589]
[1773146072781,0.53551618,2053.3,2052.8,0.48091589]